Cogmind - Beta 15 @@@ ROGUE MODE // 2025.07.20 @ 19:37:13 Player: Chicken Result: Destroyed by EG-XGK(j) with Overtuned Pulse Rifle Performance ------------- Evolutions (0) 0 Regions Visited (4) 800 Robots Destroyed (18) 90 Value Destroyed (535) 535 Prototype IDs (12) 240 Alien Tech Used (0) 0 Bonus (800) 800 TOTAL SCORE: 2465 Bonus ------- Registered with UFD 300 Met Optimus in HQ 500 Cogmind --------- Core Integrity 0/250 Matter 214/300 Energy 90/150 System Corruption 0% Temperature Warm (138) Movement Walking (190) Ox1 Location -9/Scraptown Parts ------- > --- POWER (1) -------- Light Angular Momentum Engine > --- PROPULSION (2) --- Aluminum Leg Aluminum Leg > --- UTILITY (2) ------ Hardened Light Armor Plating A0-MCA's Component Scanner > --- WEAPON (2) ------- Overtuned Pulse Rifle Improved EM Pulse Cannon > --- INVENTORY (5) ---- Overtuned Titanium Leg Structural Scanner Terrain Scanner Bore Cannon Peak State ------------ > --- POWER ------------ Light Angular Momentum Engine > --- PROPULSION ------- Aluminum Leg Aluminum Leg > --- UTILITY ---------- Hardened Light Armor Plating A0-MCA's Component Scanner > --- WEAPON ----------- Overtuned Pulse Rifle Improved EM Pulse Cannon > --- INVENTORY -------- Overtuned Titanium Leg Structural Scanner Terrain Scanner Bore Cannon [Rating: 26] Favorites ----------- Power Ion Engine Engine Ion Engine Propulsion Aluminum Leg Leg Aluminum Leg Wheel Wheel Utility Targeting Computer Device Terrain Scanner Processor Targeting Computer Protection Scrap Shield Weapon Light Assault Rifle Energy Gun Small Laser Energy Cannon Improved EM Pulse Cannon Ballistic Gun Light Assault Rifle Ballistic Cannon Bore Cannon Launcher Grenade Launcher Special Weapon Flamer Build | -11 -10 -10 -10 -9 ------- Run | Yrd Mat Min Sub Scr Slots Evolved . | . . . . . Power . | . . . . . Propulsion . | . . . . . Utility . | . . . . . Weapon . | . . . . . Parts Attached 30 | 7 7 3 5 8 Power 5 | 2 . 1 1 1 Engine 5 | 2 . 1 1 1 Core . | . . . . . Reactor . | . . . . . Propulsion 7 | 3 2 1 . 1 Treads . | . . . . . Leg 6 | 2 2 1 . 1 Wheel 1 | 1 . . . . Hover . | . . . . . Flight . | . . . . . Utility 9 | . 3 . 2 4 Device 3 | . . . 1 2 Storage . | . . . . . Processor 4 | . 3 . . 1 Hackware . | . . . . . Protection 2 | . . . 1 1 Artifact . | . . . . . Weapon 9 | 2 2 1 2 2 Energy Gun 3 | 1 . 1 . 1 Energy Cannon 1 | . . . . 1 Ballistic Gun 2 | 1 1 . . . Ballistic Cannon 1 | . . . 1 . Launcher 1 | . 1 . . . Special Weapon 1 | . . . 1 . Impact Weapon . | . . . . . Slashing Weapon . | . . . . . Piercing Weapon . | . . . . . Special Melee Weapon . | . . . . . Unidentified Prototypes . | . . . . . Parts Lost 2 | . . . 2 . Power . | . . . . . Propulsion . | . . . . . Utility 1 | . . . 1 . Weapon 1 | . . . 1 . Highest Loss Streak 2 | . . . 2 . To Critical Strikes . | . . . . . Average Backups 3 | 2 3 4 3 4 Power . | . . . . . Propulsion . | 1 . . . . Utility 1 | . . 1 2 1 Weapon 1 | 1 2 2 1 1 Tool/Special . | . . . . . Unused Backups 10 | 2 4 . . 4 Power . | . . . . . Propulsion 4 | 2 1 . . 1 Utility 4 | . 2 . . 2 Weapon 2 | . 1 . . 1 Tool/Special . | . . . . . Average Slot Usage (%) 93 | . 96 100 78 97 Engine 14 | . 14 14 14 14 Leg 28 | . 28 28 28 28 Device 9 | . . . 1 22 Processor 9 | . 24 28 1 2 Protection 1 | . . . 5 . Energy Gun 5 | . 2 14 9 . Ballistic Gun 13 | . 23 14 10 13 Ballistic Cannon 7 | . . . 7 13 Peak Build Rating 26 | 5 7 9 12 26 Average Rating 11 | 4 6 7 10 17 On Entrance 6 | . 5 7 8 12 Naked Turns . | . . . . . Heaviest Build 28 | 7 9 9 28 24 Greatest Support 23 | 20 20 20 20 23 Greatest Overweight (x) 1 | . . . 1 1 Average Overweight (x) . | . . . . . Largest Inventory Capacity 5 | 5 5 5 5 5 Average Capacity 5 | 5 5 5 5 5 Most Carried 5 | 5 5 5 5 5 Average Carried 3 | 2 3 4 3 4 Final Capacity 5 | 5 5 5 5 5 Final Carried 4 | 3 4 4 3 4 Class Distribution -------------------- 100% | Mutant Dominant Class ---------------- Mutant | -10/Materials Mutant | -10/Mines Mutant | -10/Subcaves Mutant | -9/Scraptown Resources | -11 -10 -10 -10 -9 ----------- Run | Yrd Mat Min Sub Scr Matter Collected 824 | 234 63 140 164 223 Remotely . | . . . . . Salvage Created 542 | 33 237 72 138 62 Parts 52 | 4 27 6 10 5 Haulers Intercepted . | . . . . . Recyclers Shooed . | . . . . . Parts Field Recycled . | . . . . . Retrieved Matter . | . . . . . Parts Self-Destructed 8 | . . . 8 . Prevented . | . . . . . Kills | -11 -10 -10 -10 -9 ------- Run | Yrd Mat Min Sub Scr Combat Hostiles Destroyed 13 | 1 5 2 4 1 Guns 9 | 1 3 2 2 1 Cannons 2 | . . . 2 . AOE 2 | . 2 . . . Classes Destroyed 7 | 1 4 . 1 1 Worker 1 | . 1 . . . Builder 3 | . 3 . . . Watcher 1 | . 1 . . . Swarmer 1 | . 1 . . . Grunt 7 | 1 4 2 . . Subdweller 4 | . . . 4 . Scrapper 1 | . . . . 1 Best Kill Streak 9 | 1 9 2 3 1 Combat Bots Only 3 | 1 2 2 3 1 Max Kills in Single Turn 3 | 1 3 1 1 1 Gunslinging . | . . . . . Exploded 1 | . 1 . . . Melee . | . . . . . Uniques/NPCs Destroyed . | . . . . . Combat | -11 -10 -10 -10 -9 -------- Run | Yrd Mat Min Sub Scr Hostile Shots Fired 97 | 4 23 11 16 43 Missed 26 | 1 9 1 3 12 Hits 71 | 3 14 10 13 31 Projectile 71 | 3 14 10 13 31 Critical Strikes 2 | . . 1 1 . Damage Taken 1368 | 33 339 134 300 562 Core 267 | 23 131 16 . 97 Absorbed by Shields . | . . . . . Core Remaining (%) 90 | 90 . . . . Volleys Fired 70 | 5 14 9 24 18 Largest 2 | 2 2 2 2 2 Hottest 165 | 60 60 60 165 89 Shots Fired 135 | 10 28 18 46 33 Gun 92 | 10 25 18 24 15 Cannon 34 | . . . 16 18 Launcher 3 | . 3 . . . Special 6 | . . . 6 . Kinetic 91 | 5 22 9 32 23 Thermal 31 | 5 3 9 14 . Explosive 3 | . 3 . . . Electromagnetic 10 | . . . . 10 Robot Hit Streak 9 | 2 9 6 9 4 Robot Miss Streak 7 | 2 2 2 2 7 Penetration Max . | . . . . . Secondary Targets 1 | . . 1 . . Max Gunslinging Chain 1 | . . 1 . . Shots Hit Robots 58 | 4 18 10 12 14 Core Hits 39 | 3 19 5 6 6 Critical Kills . | . . . . . Critical Parts Destroyed 1 | . . . . 1 Critical Strikes 2 | . . . 1 1 Burn 1 | . . . 1 . Destroy 1 | . . . . 1 Melee Attacks . | . . . . . Impact . | . . . . . Slashing . | . . . . . Piercing . | . . . . . Sneak Attacks . | . . . . . Combat Hostiles . | . . . . . Follow-up Attacks . | . . . . . Damage Inflicted 1267 | 35 616 122 183 311 Guns 448 | 35 122 122 119 50 Cannons 240 | . . . 31 209 Explosions 546 | . 494 . . 52 Melee . | . . . . . Ramming . | . . . . . Kinetic 349 | 24 110 44 40 131 Thermal 310 | 11 26 78 143 52 Explosive 341 | . 341 . . . Electromagnetic 267 | . 139 . . 128 Impact . | . . . . . Slashing . | . . . . . Piercing . | . . . . . Highest Corruption . | . . . . . Average Corruption . | . . . . . Corruption Purged . | . . . . . Corruption Blocked . | . . . . . Overload Shots . | . . . . . Overflow Damage . | . . . . . Projectiles . | . . . . . Explosions . | . . . . . Melee . | . . . . . Knockbacks 1 | . . . . 1 Impact . | . . . . . Kinetic 1 | . . . . 1 Secondary . | . . . . . Self-Inflicted Damage 164 | . 164 . . . Shots 5 | . 5 . . . Rammed . | . . . . . Targets Rammed . | . . . . . Kicked . | . . . . . Crushed . | . . . . . Highest Temperature 471 | 32 27 112 5 471 Average Temperature 127 | 16 10 36 2 203 Received Heat Transfer 531 | 18 93 93 51 276 Effects 6 | . . . . 6 Shutdowns 2 | . . . . 2 Energy Bleed 1 | . . . . 1 Interference 3 | . . . . 3 Siege Activations . | . . . . . Martial Activations . | . . . . . Shielding Activations . | . . . . . Robots Disrupted . | . . . . . Combat Hostiles . | . . . . . Robots Corrupted . | . . . . . Combat Hostiles . | . . . . . Parts Fried . | . . . . . Impact Corruptions . | . . . . . Robots Melted . | . . . . . Combat Hostiles . | . . . . . Parts Melted . | . . . . . Heat Transferred 898 | 25 75 175 573 50 Parts Sabotaged . | . . . . . Parts Stolen . | . . . . . Parts Stripped . | . . . . . Power Chain Reactions 3 | . 2 . . 1 Alert | -11 -10 -10 -10 -9 ------- Run | Yrd Mat Min Sub Scr Maximum Alert Level . | . . . . . Low Security (%) 100 | 100 100 100 . . Level 1 . | . . . . . Level 2 . | . . . . . Level 3 . | . . . . . Level 4 . | . . . . . Level 5 . | . . . . . High Security . | . . . . . Max Security . | . . . . . Peak Influence 178 | 20 178 91 . . Initial 61 | . . 61 . . Average 19 | 1 40 19 . . Influence Increases 293 | 20 208 65 . . Destroy 0b10 Robot/C 160 | 20 100 40 . . Destroy 0b10 Robot/NC 25 | . 25 . . . Destroy Leader 32 | . 22 10 . . Disable Machine 30 | . 30 . . . Destroy Structure 31 | . 31 . . . Lose Combat Pursuer 15 | . . 15 . . Influence Decreases 293 | 20 50 216 7 . Entered New Map 101 | . . 97 4 . Time Decay 192 | 20 50 119 3 . Squads Dispatched 2 | . 1 1 . . Investigation . | . . . . . Extermination . | . . . . . Reinforcement 1 | . 1 . . . Assault 1 | . . 1 . . Garrison . | . . . . . Intercept . | . . . . . Searches Triggered . | . . . . . Construction Impeded . | . . . . . Haulers Reinforced . | . . . . . Active Scanning Responses . | . . . . . Cargo Convoy Interrupts . | . . . . . Stealth | -11 -10 -10 -10 -9 --------- Run | Yrd Mat Min Sub Scr Distress Signals 2 | . 2 . . . Communications Jammed . | . . . . . Distress Signals . | . . . . . Times Spotted 32 | 1 9 4 9 9 Peak Tracking Total 7 | 1 4 4 7 3 Tactical Retreats 3 | . . 1 . 2 Traps | -11 -10 -10 -10 -9 ------- Run | Yrd Mat Min Sub Scr Traps Triggered . | . . . . . Indirectly . | . . . . . Trap Hack Attempts . | . . . . . Triggered . | . . . . . Disarmed . | . . . . . Reprogrammed . | . . . . . Reused . | . . . . . Traps Extracted . | . . . . . Installed . | . . . . . Triggered . | . . . . . Machines | -11 -10 -10 -10 -9 ---------- Run | Yrd Mat Min Sub Scr Machines Disabled 3 | . 2 . . 1 Max in Single Turn 1 | . 1 . . 1 Machines Repaired . | . . . . . Machines Dismantled . | . . . . . Machines Sabotaged . | . . . . . Overloaded Fab Kills . | . . . . . Hacking | -11 -10 -10 -10 -9 --------- Run | Yrd Mat Min Sub Scr Machines Accessed 8 | . 2 1 . 5 Terminals 3 | . 2 1 . . Fabricators . | . . . . . Repair Stations . | . . . . . Recycling Units . | . . . . . Scanalyzers . | . . . . . Garrison Access . | . . . . . Total Hacks 34 | . 3 1 . 30 Successful 31 | . 1 . . 30 Failed 3 | . 2 1 . . Catastrophic . | . . . . . Database Lockouts . | . . . . . Manual 2 | . . . . 2 Terminals 4 | . 3 1 . . Fabricators . | . . . . . Repair Stations . | . . . . . Recycling Units . | . . . . . Scanalyzers . | . . . . . Garrison Access . | . . . . . Terminal Hacks 31 | . 1 . . 30 Record 26 | . 1 . . 25 Robot Analysis 4 | . . . . 4 Proto ID Catalog 1 | . . . . 1 Fabricator Hacks . | . . . . . Repair Station Hacks . | . . . . . Recycling Unit Hacks . | . . . . . Scanalyzer . | . . . . . Garrison Access Hacks . | . . . . . Unauthorized Hacks . | . . . . . Terminals . | . . . . . Fabricators . | . . . . . Repair Stations . | . . . . . Recycling Units . | . . . . . Scanalyzers . | . . . . . Garrison Access . | . . . . . Data Cores Recovered . | . . . . . Used . | . . . . . Hacking Detections 1 | . . 1 . . Full Trace Events . | . . . . . Feedback Events . | . . . . . Feedback Blocked . | . . . . . Robot Schematics Acquired . | . . . . . Robots Built . | . . . . . Authchips . | . . . . . Time . | . . . . . Total Robot Build Rating . | . . . . . Part Schematics Acquired . | . . . . . Parts Built . | . . . . . Authchips . | . . . . . Time . | . . . . . Total Part Build Rating . | . . . . . Parts Repaired . | . . . . . Time . | . . . . . Parts Recycled . | . . . . . Recycled Matter . | . . . . . Retrieved Matter . | . . . . . Retrieved Components . | . . . . . Parts Scanalyzed . | . . . . . Part Schematics Acquired . | . . . . . Parts Damaged . | . . . . . Bothacking | -11 -10 -10 -10 -9 ------------ Run | Yrd Mat Min Sub Scr Used RIF Installer . | . . . . . Robots Hacked . | . . . . . Non-combat . | . . . . . Combat . | . . . . . Robot Hacks Applied . | . . . . . Relay Couplers Released . | . . . . . Fabnet Peak Effective % . | . . . . . Robots Rewired . | . . . . . Allies Hacked . | . . . . . Hacks Repelled . | . . . . . Allies | -11 -10 -10 -10 -9 -------- Run | Yrd Mat Min Sub Scr Total Allies 1 | . . 1 . . Largest Group 1 | . . 1 . . Highest-Rated Group 31 | . . 31 . . Highest-Rated Ally 31 | . . 31 . . Total Orders . | . . . . . Ally Attacks 9 | . . 9 . . Total Damage 105 | . . 105 . . Kills . | . . . . . Allies Corrupted . | . . . . . Allies Melted 3 | . . . . 3 Intel | -11 -10 -10 -10 -9 ------- Run | Yrd Mat Min Sub Scr Active Infowar (turns) 1178 | . . . 78 1100 Optics 378 | . . . 78 300 Terrain 800 | . . . . 800 Structural 767 | . . . . 767 Robot Analysis Total 4 | . . . . 4 Derelict Logs Recovered 3 | . . 2 1 . Drone Launches . | . . . . . Drone Recoveries . | . . . . . Exploration | -11 -10 -10 -10 -9 ------------- Run | Yrd Mat Min Sub Scr Turns Passed 3080 | 314 264 582 740 1180 Spaces Moved 2210 | 251 161 450 458 890 Core 33 | 33 . . . . Treads . | . . . . . Legs 2177 | 218 161 450 458 890 Wheels . | . . . . . Hover . | . . . . . Flight . | . . . . . Fastest Speed 50 | 50 120 120 120 120 Average Speed 124 | 110 120 120 141 121 Slowest Speed 190 | 120 120 120 190 190 Overloaded Moves . | . . . . . Propulsion Burnouts . | . . . . . Robots Hopped . | . . . . . Potential Cave-ins . | . . . . . Cave-ins Triggered . | . . . . . Exploration Rate (%) 41 | 10 28 79 26 63 Regions Visited 4 Branch Regions 3 Pre-discovered Areas . | . . . . . Known Exits Taken 2 | . 1 1 . . Unknown Exits Taken 2 | 1 . . 1 . Scrap Searched 4 | . . 1 . 3 Spaces Dug 2 | . . . 2 . Terrain Destroyed 32 | . 29 . 2 1 Melee . | . . . . . Projectile 3 | . . . 2 1 AOE 29 | . 29 . . . Terrain Rammed . | . . . . . Walls Destroyed . | . . . . . Machines Disabled . | . . . . . Actions | -11 -10 -10 -10 -9 --------- Run | Yrd Mat Min Sub Scr Total 2421 | 278 207 477 504 955 Wait 29 | 1 5 . 5 18 Move 2206 | 250 160 449 457 890 Hop . | . . . . . Pick Up 46 | 11 11 7 6 11 Fast Attach . | . . . . . Attach 11 | 5 2 . 3 1 Detach 2 | . . . 2 . Swap 27 | 3 8 5 3 8 Drop 30 | 3 7 7 4 9 Fire 70 | 5 14 9 24 18 Melee . | . . . . . Ram . | . . . . . Kick . | . . . . . Crush . | . . . . . Escape Stasis . | . . . . . Rewire . | . . . . . Trap . | . . . . . Miscellaneous . | . . . . . Route ------- -11/Scrapyard -10/Materials -10/Mines (discovered 4 exits: *Mat x2 / *Exi / *Sub) -10/Subcaves (discovered 2 exits: Mat / *Scr) -9/Scraptown (discovered 2 exits: Fac x2) History --------- Turn | Location | Event 2 | -11/Scrapyard | Met Revision 17 115 | -11/Scrapyard | Discovered new exit (range 8) 315 | -11/Scrapyard | Entered Materials 316 | -10/Materials | Build established: Mutant 383 | -10/Materials | Discovered new exit (range 16) 528 | -10/Materials | Core integrity fell below 50% 577 | -10/Materials | Identified exit to Mines 579 | -10/Materials | Entered Mines 683 | -10/Mines | Discovered new exit (range 15) 701 | -10/Mines | Deemed a non-threat by the Exiles lab entrance 708 | -10/Mines | Identified exit to Exiles 739 | -10/Mines | Discovered new exit (range 7) 745 | -10/Mines | Identified exit to Materials 816 | -10/Mines | Found a hidden stash of uninstalled traps 897 | -10/Mines | Learned Materials stockpile data 962 | -10/Mines | Discovered exit to Materials (range 14) 986 | -10/Mines | A weapon hastily lodged in a ceiling crevice suddenly fell to the ground 1049 | -10/Mines | Met a Derelict testing a Signal Generator 1050 | -10/Mines | Learned 2 Materials zone layouts 1080 | -10/Mines | Found Signal Generator 1154 | -10/Mines | Discovered new exit (range 6) 1160 | -10/Mines | Identified exit to Subcaves 1161 | -10/Mines | Entered Subcaves 1162 | -10/Subcaves | Approached by a straggling Scientist 1252 | -10/Subcaves | Identified exit to Materials 1404 | -10/Subcaves | Shifting Twisted Machinery released Sub. Monowheel 1443 | -10/Subcaves | Ambushed by swarm of Subdwellers 1645 | -10/Subcaves | Scientist uncovered a shortcut to Scraptown 1661 | -10/Subcaves | A swath of the cavern ceiling suddenly collapsed 1901 | -10/Subcaves | Entered Scraptown 2330 | -9/Scraptown | Visited Awakened 2377 | -9/Scraptown | Visited UFD Registry 2377 | -9/Scraptown | Registered with UFD as "Pyrobank" 2423 | -9/Scraptown | Visited Science Guys 2471 | -9/Scraptown | Visited Analyses Database 2730 | -9/Scraptown | Met Optimus 2730 | -9/Scraptown | Accepted into 0bPrime 2813 | -9/Scraptown | Visited A0-MCA Data Center 2820 | -9/Scraptown | Given an A- rating by A0-MCA 2826 | -9/Scraptown | Found A0-MCA's Component Scanner 2880 | -9/Scraptown | Visited LU-1G1's Boring Crew 2898 | -9/Scraptown | Civil war broke out across Scraptown 2973 | -9/Scraptown | Identified exit to Factory 3006 | -9/Scraptown | Core integrity fell below 20% 3081 | -9/Scraptown | Destroyed by EG-XGK(j) with Overtuned Pulse Rifle Last Messages --------------- Dropped Imp. Aluminum Leg. Power failure, Lgt. Angular Momentum Engine shutdown. Overheating: System interference. A0-MCA's Component Scanner temporarily disabled. Lgt. Assault Rifle temporarily disabled. Optimus: This place isn't worth defending, let's get out of here, Pyrobank! Our real resources are elsewhere, after all. Acquired Ovr. Pulse Rifle. Dropped Lgt. Assault Rifle. Acquired Ovr. Titanium Leg. Acquired 62 matter. Bolt penetrates Machine. EF-YKV(x) destroyed. Chain reaction triggered in Lgt. Nuclear Core. Bolt penetrates Machine. Penetrated by Bolt. [Achievement: First Step to Greatness] Map ----- +----------------------------------------------------+ | ?????????????????????????????????????????????????? | | ???????????#?????????????????????????????????????? | | ?????????????????????????????????????????????????? | | ????????????????#????????????????????????????????? | | ?????????????????????????????????#???????????????? | | ??????????????#??#???????????????????#???????????? | | ?????#??#???????????????###########??????????????? | | ??????????#########???#############??????????????? | | ?????????## # #?####"""""""""##??????????????? | | ??????????# # """ # ###"""""""""##????????????? # | | ??????????# # "#" # ####"""""""""##???????????? # | | ??????????# # """ #?##"""""""""##???"""""???? # | | ????????#?# #?##""" """##??? """"??## # | | ??????????# #### ## #?##""" !"""##??? "??## # | | ??????????# # #?##"!" """##??? ""### # | | ??????????# #* # #?##""" """"##?? ""### # | | ??????????# #% # #?##""" """##?? ? ""### # | | ????#?????#[ / #?## "##???? "?## # | | ####?????####### ########### ########### ##### # | | ######??????#####!########### ########### ##### # | | ##?#??###""""=""" " """ " """" """"" " | | ##????#?#" !%* %*%/ | | ##??????# = j | | ##?????## % | | ##???#??# [ = == | | ##??##### [![* 3@! %! [%! h | | ##?##"""" !%%""" !"" """""" """"""""""" | | ##??#"""" *=[""""""""""""""""""""""""""" | | ##??#"""" "###### ################"" | | ##??#"""" "# ###########"" | | #####""""=/ =""# X"##????#?##"" | | ###"#""""%! ""# "" "" ###????####"" | | ""#"#""""*= ""# "" "" X"##########"" | | """"#"""" ""# " " ######### #"" | | ""#######" "" "" | | ######### "" "" | | #########" ""# " " ######### #"" | | ""# "" "" ""##########"" | | % "# "" "" ###?##?####"" | | "# X"##??????##"" | | = # ###########"" | | ![!"###### ################"" | | !*!*""""""""""""""""""""""""""" | | =%!%% [""""""""""""""""""""""""" | | !=%%=% | | [ *!! = | | %[ =%* = | | #""""# ! | | #"??"#" [* | | #"??"#" " "" """"""""""" """"""""""" """""" | +----------------------------------------------------+ Best States ------------- Heat Dissipation 25 Energy Generation 18 Energy Capacity 250 Matter Stores 300 Matter Capacity 300 Sight Range 21 Terrain Scan Range 14 Terrain Scan Density 10 Armor Coverage 800 Evasion (%) 55 Targeting Accuracy 5 Item Schematics ----------------- None Robot Schematics ------------------ None Fabricated ------------ Nothing Repaired ---------- Nothing Alien Tech Used ----------------- None Achievements -------------- Armchair Analyst First Step to Greatness Librarian Storm Trooper Tourist Uninvited Guest Challenges ------------ None Game ------ Seed CatalystTacticalRouter Manual? 0 Play Time 01:08:57 Cumulative 1.1 hours Start 2025.07.20 @ 18:19:04 End 2025.07.20 @ 19:37:13 Sessions 1 Manual Loads 0 Difficulty Rogue Special Mode None Game No. 1 Rogue 1 Adventurer 0 Explorer 0 Win Type - Total 0 Types 0/0/0/0/0/0/0/0/0/0 Lore% 4 Gallery% 2 Achievement% 2 Wizard Run 0 Options --------- Layout 1 ASCII 0 Keyboard 0 Movement Mouse Keybinds 0 Fullscreen 1 Font 24/Smallcaps Map View 50x35 Zoom Use 0% Tactical HUD 0 Map Filters NONE Filters NONE Steam 1 RUN: 4f48b2de-5c1b-4462-834f-b21e8bf4f73b